fUSD/lending_fUSD_20250208
["ID","MTS","AMOUNT","RATE_DAILY","PERIOD"]
[352253129,1739019041925,-500.0,0.0001012,2]
[352253131,1739019041934,-500.0,0.0001012,2]
[352253133,1739019041944,-500.0,0.0001012,2]
[352253135,1739019041953,-500.0,0.0001012,2]
[352253137,1739019041963,-500.0,0.0001012,2]
[352253139,1739019041972,-500.0,0.0001012,2]
[352253141,1739019041981,-500.0,0.0001012,2]
[352253143,1739019041991,-500.0,0.0001012,2]
[352253145,1739019042001,-500.0,0.0001012,2]
[352253147,1739019042010,-1577.24,0.0001012,2]
[352253149,1739019042019,-500.0,0.0001012,2]
[352253151,1739019042029,-558.66,0.0001012,2]
[352253153,1739019042039,-500.0,0.0001012,2]
[352253155,1739019042048,-500.0,0.0001012,2]
[352253156,1739019042059,-732.41,0.0001012,2]
[352253157,1739019042070,-500.0,0.0001012,2]
[352253158,1739019042080,-500.0,0.0001012,2]
[352253159,1739019042090,-500.0,0.0001012,2]
[352253160,1739019042100,-668.02,0.0001012,2]
[352253161,1739019042109,-500.0,0.0001012,2]
[352253162,1739019042118,-500.0,0.0001012,2]
[352253163,1739019042127,-500.0,0.0001012,2]
[352253164,1739019042136,-500.0,0.0001012,2]
[352253165,1739019042145,-500.0,0.0001012,2]
[352253166,1739019042154,-421.41105214,0.0001012,2]
[352253167,1739019042164,-500.0,0.0001012,2]
[352253168,1739019042173,-1376.68,0.0001012,2]
[352253169,1739019042183,-500.0,0.0001012,2]
[352253170,1739019042192,-500.0,0.0001012,2]
[352253172,1739019042202,-216.50770705,0.0001012,2]
[352253174,1739019042211,-502.78339277,0.0001012,2]
[352253175,1739019042220,-578.18,0.0001012,2]
[352253177,1739019042229,-502.89639744,0.0001012,2]
[352253179,1739019042239,-502.64462557,0.0001012,2]
[352253181,1739019042248,-1234.59,0.0001012,2]
[352253183,1739019042257,-500.0,0.0001012,2]
[352253185,1739019042267,-545.13,0.0001012,2]
[352253187,1739019042275,-500.0,0.0001012,2]
[352253189,1739019042286,-500.0,0.0001012,2]
[352253191,1739019042295,-500.0,0.0001012,2]
[352253193,1739019042304,-702.19,0.0001012,2]
[352253195,1739019042313,-500.0,0.0001012,2]
[352253197,1739019042322,-500.0,0.0001012,2]
[352253199,1739019042331,-664.46,0.0001012,2]
[352253201,1739019042341,-1351.05,0.0001012,2]
[352253203,1739019042350,-501.50071033,0.0001012,2]
[352253205,1739019042359,-312.94883075,0.0001012,2]
[352253207,1739019042369,-672.31,0.0001012,2]
[352253209,1739019042378,-848.69,0.0001012,2]
[352253211,1739019042389,-500.0,0.0001012,2]
[352253213,1739019042401,-500.0,0.0001012,2]
[352253215,1739019042410,-698.15,0.0001012,2]
[352253217,1739019042419,-961.88,0.0001012,2]
[352253219,1739019042428,-414.27508751,0.0001012,2]
[352253221,1739019042438,-1098.18,0.0001012,2]
[352253223,1739019042447,-500.0,0.0001012,2]
[352253225,1739019042457,-1230.69,0.0001012,2]
[352253227,1739019042468,-500.0,0.0001012,2]
[352253229,1739019042477,-500.0,0.0001012,2]
[352253231,1739019042486,-506.96497327,0.0001012,2]
[352253233,1739019042495,-500.0,0.0001012,2]
[352253235,1739019042503,-500.0,0.0001012,2]
[352253237,1739019042512,-506.99424087,0.0001012,2]
[352253239,1739019042521,-500.0,0.0001012,2]
[352253241,1739019042533,-500.0,0.0001012,2]
[352253243,1739019042543,-505.6326957,0.0001012,2]
[352253245,1739019042555,-500.0,0.0001012,2]
[352253247,1739019042564,-508.20003177,0.0001012,2]
[352253249,1739019042573,-502.37,0.0001012,2]
[352253251,1739019042583,-503.88524772,0.0001012,2]
[352253253,1739019042592,-500.0,0.0001012,2]
[352253255,1739019042602,-500.0,0.0001012,2]
[352253258,1739019042612,-547.92,0.0001012,2]
[352253261,1739019042622,-500.0,0.0001012,2]
[352253263,1739019042633,-538.65422454,0.0001012,2]
[352253265,1739019042643,-589.64,0.0001012,2]
[352253267,1739019042655,-736.0,0.0001012,2]
[352253270,1739019042666,-500.0,0.0001012,2]
[352253273,1739019042676,-500.0,0.0001012,2]
[352253275,1739019042687,-500.0,0.0001012,2]
[352253277,1739019042696,-500.0,0.0001012,2]
[352253279,1739019042706,-500.0,0.0001012,2]
[352253281,1739019042716,-785.96,0.0001012,2]
[352253283,1739019042725,-500.0,0.0001012,2]
[352253285,1739019042734,-664.98,0.0001012,2]
[352253287,1739019042743,-500.29927466,0.0001012,2]
[352253289,1739019042753,-500.0,0.0001012,2]
[352253292,1739019042762,-500.0,0.0001012,2]
[352253295,1739019042772,-504.79,0.0001012,2]
[352253298,1739019042784,-500.0,0.0001012,2]
[352253301,1739019042793,-500.0,0.0001012,2]
[352253304,1739019042802,-500.0,0.0001012,2]
[352253306,1739019042811,-500.0,0.0001012,2]
[352253309,1739019042820,-739.53,0.0001012,2]
[352253312,1739019042830,-500.0,0.0001012,2]
[352253314,1739019042839,-1829.05,0.0001012,2]
[352253317,1739019042849,-500.0,0.0001012,2]
[352253321,1739019042859,-500.0,0.0001012,2]
[352253324,1739019042868,-500.0,0.0001012,2]
[352253326,1739019042877,-500.0,0.0001012,2]
[352253329,1739019042886,-500.0,0.0001012,2]
[352253332,1739019042895,-625.61,0.0001012,2]
[352253334,1739019042904,-749.8,0.0001012,2]
[352253337,1739019042914,-500.0,0.0001012,2]
[352253338,1739019042923,-1500.55,0.0001012,2]
[352253341,1739019042932,-550.9,0.0001012,2]
[352253343,1739019042941,-500.0,0.0001012,2]
[352253344,1739019042951,-500.0,0.0001012,2]
[352253346,1739019042960,-762.56,0.0001012,2]
[352253348,1739019042969,-24687.67276716,0.0001012,2]
[352253350,1739019042979,-651.58,0.0001012,2]
[352253353,1739019042989,-688.8,0.0001012,2]
[352253354,1739019042998,-500.0,0.0001012,2]
[352253357,1739019043007,-500.0,0.0001012,2]
[352253359,1739019043016,-503.93,0.0001012,2]
[352253361,1739019043025,-500.0,0.0001012,2]
[352253362,1739019043040,-500.0,0.0001012,2]
[352253364,1739019043049,-293.05347277,0.0001012,2]
[352253367,1739019043059,-500.0,0.0001012,2]
[352253369,1739019043068,-500.0,0.0001012,2]
[352253371,1739019043078,-500.0,0.0001012,2]
[352253373,1739019043087,-500.0,0.0001012,2]
[352253375,1739019043096,-824.16,0.0001012,2]
[352253377,1739019043106,-500.0,0.0001012,2]
[352253379,1739019043115,-500.0,0.0001012,2]
[352253381,1739019043124,-500.0,0.0001012,2]
[352253383,1739019043133,-597.19,0.0001012,2]
[352253385,1739019043142,-505.69668164,0.0001012,2]
[352253387,1739019043151,-460.78487989,0.0001012,2]
[352253389,1739019043160,-759.56,0.0001012,2]
[352253391,1739019043170,-501.22919663,0.0001012,2]
[352253392,1739019043179,-692.04,0.0001012,2]
[352253394,1739019043189,-1415.76,0.0001012,2]
[352253396,1739019043198,-500.0,0.0001012,2]
[352253398,1739019043208,-500.0,0.0001012,2]
[352253400,1739019043217,-500.0,0.0001012,2]
[352253402,1739019043226,-610.47,0.0001012,2]
[352253404,1739019043235,-500.0,0.0001012,2]
[352253406,1739019043244,-1795.35,0.0001012,2]
[352253408,1739019043253,-500.0,0.0001012,2]
[352253410,1739019043262,-500.0,0.0001012,2]
[352253412,1739019043271,-500.0,0.0001012,2]
[352253414,1739019043281,-500.0,0.0001012,2]
[352253416,1739019043293,-500.0,0.0001012,2]
[352253418,1739019043303,-500.0,0.0001012,2]
[352253420,1739019043312,-500.0,0.0001012,2]
[352253422,1739019043321,-500.0,0.0001012,2]
[352253425,1739019043332,-722.92,0.0001012,2]
[352253427,1739019043341,-500.0,0.0001012,2]
[352253429,1739019043350,-500.0,0.0001012,2]
[352253431,1739019043359,-500.0,0.0001012,2]
[352253432,1739019043368,-696.7,0.0001012,2]
[352253435,1739019043377,-1014.75,0.0001012,2]
[352253436,1739019043389,-500.0,0.0001012,2]
[352253440,1739019043399,-1491.65,0.0001012,2]
[352253443,1739019043408,-500.0,0.0001012,2]
[352253445,1739019043417,-500.0,0.0001012,2]
[352253448,1739019043426,-500.0,0.0001012,2]
[352253451,1739019043436,-659.72,0.0001012,2]
[352253453,1739019043445,-500.0,0.0001012,2]
[352253455,1739019043454,-635.45,0.0001012,2]
[352253457,1739019043463,-1440.95,0.0001012,2]
[352253459,1739019043474,-500.0,0.0001012,2]
[352253461,1739019043483,-450.36186393,0.0001012,2]
[352253463,1739019043492,-570.01,0.0001012,2]
[352253465,1739019043501,-561.8,0.0001012,2]
[352253467,1739019043510,-500.0,0.0001012,2]
[352253469,1739019043519,-10803.61,0.0001012,2]
[352253471,1739019043528,-1177.71,0.0001012,2]
[352253474,1739019043544,-1665.48,0.0001012,2]
[352253476,1739019043553,-500.0,0.0001012,2]
[352253478,1739019043564,-500.0,0.0001012,2]
[352253480,1739019043574,-1542.87,0.0001012,2]
[352253482,1739019043583,-500.0,0.0001012,2]
[352253484,1739019043592,-500.0,0.0001012,2]
[352253486,1739019043601,-500.0,0.0001012,2]
[352253488,1739019043611,-500.0,0.0001012,2]
[352253490,1739019043620,-500.0,0.0001012,2]
[352253492,1739019043629,-500.0,0.0001012,2]
[352253494,1739019043639,-500.0,0.0001012,2]
[352253496,1739019043648,-500.0,0.0001012,2]
[352253498,1739019043658,-2013.31,0.0001012,2]
[352253500,1739019043667,-1526.43,0.0001012,2]
[352253502,1739019043677,-500.0,0.0001012,2]
[352253504,1739019043687,-1414.63,0.0001012,2]
[352253506,1739019043696,-500.0,0.0001012,2]
[352253508,1739019043706,-500.0,0.0001012,2]
[352253510,1739019043715,-500.0,0.0001012,2]
[352253512,1739019043726,-506.75,0.0001012,2]
[352253514,1739019043735,-264.63898836,0.0001012,2]
[352253516,1739019043744,-500.0,0.0001012,2]
[352253518,1739019043755,-500.0,0.0001012,2]
[352253520,1739019043764,-500.0,0.0001012,2]
[352253523,1739019043774,-500.0,0.0001012,2]
[352253524,1739019043786,-2271.3,0.0001012,2]
[352253526,1739019043795,-1267.0,0.0001012,2]
[352253529,1739019043805,-1254.27,0.0001012,2]
[352253531,1739019043814,-500.0,0.0001012,2]
[352253533,1739019043823,-764.29,0.0001012,2]
[352253535,1739019043833,-632.62,0.0001012,2]
[352253537,1739019043842,-1910.15,0.0001012,2]
[352253539,1739019043852,-500.0,0.0001012,2]
[352253541,1739019043861,-500.0,0.0001012,2]
[352253543,1739019043870,-1006.72,0.0001012,2]
[352253545,1739019043880,-2639.64,0.0001012,2]
[352253547,1739019043889,-500.0,0.0001012,2]
[352253549,1739019043899,-500.0,0.0001012,2]
[352253551,1739019043908,-505.64780764,0.0001012,2]
[352253553,1739019043917,-556.57,0.0001012,2]
[352253555,1739019043928,-2409.54,0.0001012,2]
[352253557,1739019043937,-500.0,0.0001012,2]
[352253559,1739019043947,-521.61,0.0001012,2]
[352253561,1739019043956,-503.46704547,0.0001012,2]
[352253563,1739019043966,-504.7273677,0.0001012,2]
[352253565,1739019043976,-1454.28,0.0001012,2]
[352253567,1739019043985,-500.0,0.0001012,2]
[352253569,1739019043994,-500.0,0.0001012,2]
[352253571,1739019044003,-500.0,0.0001012,2]
[352253573,1739019044013,-1765.01,0.0001012,2]
[352253575,1739019044023,-1985.75,0.0001012,2]
[352253577,1739019044035,-500.0,0.0001012,2]
[352253579,1739019044045,-1199.55,0.0001012,2]
[352253581,1739019044054,-871.18,0.0001012,2]
[352253583,1739019044063,-500.0,0.0001012,2]
[352253585,1739019044072,-2599.62,0.0001012,2]
[352253587,1739019044081,-500.0,0.0001012,2]
[352253589,1739019044091,-1854.84,0.0001012,2]
[352253591,1739019044100,-500.0,0.0001012,2]
[352253593,1739019044110,-500.0,0.0001012,2]
[352253595,1739019044121,-500.78943341,0.0001012,2]
[352253597,1739019044131,-893.79,0.0001012,2]
[352253599,1739019044142,-500.0,0.0001012,2]
[352253601,1739019044151,-500.0,0.0001012,2]
[352253603,1739019044161,-1978.01,0.0001012,2]
[352253605,1739019044170,-500.0,0.0001012,2]
[352253607,1739019044180,-4080.58,0.0001012,2]
[352253609,1739019044190,-1719.91,0.0001012,2]
[352253611,1739019044200,-500.0,0.0001012,2]
[352253613,1739019044209,-581.304326,0.0001012,2]
[352253615,1739019044218,-4167.24,0.0001012,2]
[352253617,1739019044228,-500.0,0.0001012,2]
[352253619,1739019044238,-508.36296043,0.0001012,2]
[352253644,1739019044470,-12253.86,0.0001012,2]
[352253646,1739019044480,-1340.27,0.0001012,2]
[352253648,1739019044490,-1039.39,0.0001012,2]
[352253650,1739019044499,-246.32387835,0.0001012,2]
[352253652,1739019044508,-500.0,0.0001012,2]
[352253655,1739019044518,-500.0,0.0001012,2]
[352253657,1739019044527,-500.0,0.0001012,2]
[352253659,1739019044538,-500.0,0.0001012,2]
[352253660,1739019044548,-1640.04,0.0001012,2]
[352253663,1739019044557,-500.0,0.0001012,2]
[352253665,1739019044567,-500.0,0.0001012,2]
[352253667,1739019044576,-1083.05,0.0001012,2]
[352253669,1739019044586,-511.40793671,0.0001012,2]
[352253671,1739019044595,-500.0,0.0001012,2]
[352253673,1739019044604,-500.0,0.0001012,2]
[352253675,1739019044614,-1904.32,0.0001012,2]
[352253677,1739019044623,-802.41,0.0001012,2]
[352253679,1739019044632,-500.0,0.0001012,2]
[352253681,1739019044642,-500.0,0.0001012,2]
[352253683,1739019044651,-500.0,0.0001012,2]
[352253685,1739019044660,-500.0,0.0001012,2]
[352253687,1739019044670,-500.0,0.0001012,2]
[352253689,1739019044679,-4946.08,0.0001012,2]
[352253690,1739019044688,-502.47233512,0.0001012,2]
[352253692,1739019044697,-1721.15,0.0001012,2]
[352253694,1739019044706,-1252.24,0.0001012,2]
[352253696,1739019044715,-500.0,0.0001012,2]
[352253699,1739019044724,-500.0,0.0001012,2]
[352253701,1739019044734,-500.0,0.0001012,2]
[352253702,1739019044743,-1389.14,0.0001012,2]
[352253704,1739019044752,-1691.94,0.0001012,2]
[352253706,1739019044761,-1132.83,0.0001012,2]
[352253708,1739019044770,-351.03731369,0.0001012,2]
[352253710,1739019044779,-1046.15,0.0001012,2]
[352253712,1739019044790,-2627.54,0.0001012,2]
[352253715,1739019044800,-519.94,0.0001012,2]
[352253717,1739019044811,-500.0,0.0001012,2]
[352253718,1739019044820,-500.0,0.0001012,2]
[352253720,1739019044829,-500.0,0.0001012,2]
[352253722,1739019044838,-512.52,0.0001012,2]
[352253724,1739019044848,-500.0,0.0001012,2]
[352253727,1739019044858,-500.0,0.0001012,2]
[352253729,1739019044867,-500.0,0.0001012,2]
[352253731,1739019044876,-3945.23,0.0001012,2]
[352253732,1739019044886,-500.0,0.0001012,2]
[352253735,1739019044895,-500.0,0.0001012,2]
[352253737,1739019044905,-1727.91,0.0001012,2]
[352253739,1739019044915,-500.0,0.0001012,2]
[352253741,1739019044925,-500.0,0.0001012,2]
[352253743,1739019044934,-503.04940138,0.0001012,2]
[352253745,1739019044943,-500.0,0.0001012,2]
[352253747,1739019044952,-412.37015456,0.0001012,2]
[352253749,1739019044961,-500.0,0.0001012,2]
[352253751,1739019044971,-3984.19,0.0001012,2]
[352253753,1739019044979,-500.0,0.0001012,2]
[352253755,1739019044988,-949.44,0.0001012,2]
[352253757,1739019044997,-500.0,0.0001012,2]
[352253759,1739019045006,-500.0,0.0001012,2]
[352253761,1739019045016,-500.0,0.0001012,2]
[352253763,1739019045025,-500.0,0.0001012,2]
[352253765,1739019045039,-3057.43,0.0001012,2]
[352253767,1739019045049,-618.76,0.0001012,2]
[352253769,1739019045059,-714.81,0.0001012,2]
[352253771,1739019045068,-1900.09,0.0001012,2]
[352253773,1739019045078,-4918.46,0.0001012,2]
[352253775,1739019045088,-500.0,0.0001012,2]
[352253777,1739019045098,-2718.67,0.0001012,2]
[352253779,1739019045108,-172.11268158,0.0001012,2]
[352253781,1739019045118,-1307.78,0.0001012,2]
[352253783,1739019045129,-500.0,0.0001012,2]
[352253784,1739019045138,-500.0,0.0001012,2]
[352253786,1739019045148,-721.31,0.0001012,2]
[352253789,1739019045157,-500.0,0.0001012,2]
[352253790,1739019045166,-500.0,0.0001012,2]
[352253793,1739019045178,-500.0,0.0001012,2]
[352253795,1739019045187,-500.0,0.0001012,2]
[352253797,1739019045196,-500.0,0.0001012,2]
[352253799,1739019045206,-500.0,0.0001012,2]
[352253801,1739019045215,-570.33,0.0001012,2]
[352253803,1739019045225,-2870.05,0.0001012,2]
[352253805,1739019045234,-860.75,0.0001012,2]
[352253807,1739019045243,-500.0,0.0001012,2]
[352253809,1739019045252,-500.0,0.0001012,2]
[352253811,1739019045262,-500.0,0.0001012,2]
[352253813,1739019045271,-3205.41,0.0001012,2]
[352253815,1739019045283,-500.0,0.0001012,2]
[352253817,1739019045297,-3098.11,0.0001012,2]
[352253819,1739019045306,-500.0,0.0001012,2]
[352253821,1739019045316,-500.0,0.0001012,2]
[352253823,1739019045325,-1823.36,0.0001012,2]
[352253825,1739019045338,-600.49,0.0001012,2]
[352253827,1739019045347,-1639.56,0.0001012,2]
[352253829,1739019045357,-500.0,0.0001012,2]
[352253831,1739019045366,-2230.91,0.0001012,2]
[352253833,1739019045375,-5256.2,0.0001012,2]
[352253835,1739019045384,-501.50673564,0.0001012,2]
[352253837,1739019045396,-500.0,0.0001012,2]
[352253839,1739019045405,-755.89,0.0001012,2]
[352253841,1739019045415,-1950.99,0.0001012,2]
[352253843,1739019045424,-1465.86,0.0001012,2]
[352253844,1739019045433,-730.02,0.0001012,2]
[352253845,1739019045443,-500.0,0.0001012,2]
[352253846,1739019045452,-500.0,0.0001012,2]
[352253847,1739019045461,-500.0,0.0001012,2]
[352253848,1739019045471,-3908.9,0.0001012,2]
[352253849,1739019045481,-597.26,0.0001012,2]
[352253850,1739019045490,-500.0,0.0001012,2]
[352253852,1739019045500,-500.0,0.0001012,2]
[352253853,1739019045509,-1496.15,0.0001012,2]
[352253854,1739019045518,-365.76955709,0.0001012,2]
[352253855,1739019045528,-500.0,0.0001012,2]
[352253856,1739019045543,-3150.83,0.0001012,2]
[352253858,1739019045552,-500.0,0.0001012,2]
[352253861,1739019045561,-500.0,0.0001012,2]
[352253863,1739019045571,-3721.01,0.0001012,2]
[352253865,1739019045580,-1347.86,0.0001012,2]
[352253867,1739019045589,-500.0,0.0001012,2]
[352253869,1739019045598,-2167.97,0.0001012,2]
[352253871,1739019045607,-1543.2,0.0001012,2]
[352253874,1739019045616,-500.0,0.0001012,2]
[352253876,1739019045626,-500.0,0.0001012,2]
[352253878,1739019045635,-3577.47,0.0001012,2]
[352253880,1739019045644,-835.83,0.0001012,2]
[352253882,1739019045653,-500.0,0.0001012,2]
[352253884,1739019045663,-500.0,0.00010121,2]
[352253886,1739019045672,-602.87,0.00010121,2]
[352253888,1739019045680,-1367.43,0.00010121,2]
[352253890,1739019045689,-567.33,0.00010121,2]
[352253891,1739019045699,-742.72,0.00010121,2]
[352253894,1739019045708,-1443.9,0.00010121,2]
[352253896,1739019045717,-500.0,0.00010121,2]
[352253898,1739019045727,-1546.44,0.00010121,2]
[352253900,1739019045736,-2113.11,0.00010121,2]
[352253902,1739019045745,-1746.31,0.00010121,2]
[352253904,1739019045754,-825.67,0.00010121,2]
[352253905,1739019045763,-706.55,0.00010121,2]
[352253907,1739019045773,-754.09,0.00010121,2]
[352253909,1739019045786,-500.0,0.00010121,2]
[352253912,1739019045795,-1816.29,0.00010121,2]
[352253913,1739019045804,-792.06,0.00010121,2]
[352253915,1739019045814,-1800.25,0.00010121,2]
[352253917,1739019045823,-500.0,0.00010121,2]
[352253919,1739019045832,-1741.18,0.00010121,2]
[352253922,1739019045841,-708.43,0.00010121,2]
[352253924,1739019045851,-820.36,0.00010121,2]
[352253926,1739019045860,-500.0,0.00010121,2]
[352253928,1739019045869,-879.9,0.00010121,2]
[352253930,1739019045879,-566.23,0.00010121,2]
[352253932,1739019045888,-500.0,0.00010121,2]
[352253934,1739019045897,-668.43,0.00010121,2]
[352253936,1739019045907,-697.71,0.00010121,2]
[352253938,1739019045916,-922.83,0.00010121,2]
[352253940,1739019045926,-500.0,0.00010121,2]
[352253942,1739019045935,-1031.15,0.00010121,2]
[352253944,1739019045944,-500.0,0.00010121,2]
[352253946,1739019045954,-4000.0,0.00010121,2]
[352253948,1739019045963,-156.45,0.00010137,2]
[352253950,1739019045973,-160.56,0.00010137,2]
[352253952,1739019045982,-174.22140757,0.00010157,2]
[352253954,1739019045991,-503.09204542,0.00010173,2]
[352253956,1739019046000,-500.0,0.00010199,2]
[352253958,1739019046010,-500.0,0.00010199,2]
[352253960,1739019046019,-500.0,0.00010199,2]
[352253962,1739019046028,-500.0,0.00010199,2]
[352253964,1739019046042,-500.0,0.00010199,2]
[352253966,1739019046051,-500.0,0.00010199,2]
[352253968,1739019046061,-176.72383659,0.00010199,2]
[352253970,1739019046070,-500.0,0.00010199,2]
[352253972,1739019046079,-500.0,0.00010199,2]
[352253974,1739019046088,-500.0,0.00010199,2]
[352253976,1739019046098,-500.0,0.00010199,2]
[352253978,1739019046107,-500.0,0.00010199,2]
[352253980,1739019046116,-500.0,0.00010199,2]
[352253982,1739019046125,-500.0,0.00010199,2]
[352253984,1739019046134,-500.0,0.00010199,2]
[352253986,1739019046143,-500.0,0.00010199,2]
[352253988,1739019046152,-500.0,0.00010199,2]
[352253990,1739019046162,-500.0,0.00010199,2]
[352253992,1739019046171,-500.0,0.00010199,2]
[352253994,1739019046180,-500.0,0.00010199,2]
[352253996,1739019046189,-500.0,0.00010199,2]
[352253998,1739019046198,-500.0,0.00010199,2]
[352254000,1739019046210,-500.0,0.00010199,2]
[352254002,1739019046220,-500.0,0.00010199,2]
[352254004,1739019046229,-500.0,0.00010199,2]
[352254006,1739019046238,-500.0,0.00010199,2]
[352254008,1739019046247,-500.0,0.00010199,2]
[352254010,1739019046256,-500.0,0.00010199,2]
[352254012,1739019046266,-500.0,0.00010199,2]
[352254014,1739019046275,-309.81693518,0.00010199,2]
[352254016,1739019046289,-2000000.0,0.000102,2]
[352254018,1739019046298,-414.86324248,0.00010213,2]
[352254020,1739019046308,-500.0,0.00010255,2]
[352254022,1739019046317,-500.0,0.00010255,2]
[352254024,1739019046326,-500.0,0.00010255,2]
[352254026,1739019046335,-816.95,0.00010255,2]
[352254028,1739019046345,-599.04,0.00010255,2]
[352254030,1739019046354,-500.0,0.00010256,2]
[352254032,1739019046363,-500.0,0.00010256,2]
[352254034,1739019046373,-500.0,0.00010256,2]
[352254036,1739019046383,-500.0,0.00010256,2]
[352254038,1739019046393,-255.60074429,0.00010256,2]
[352254040,1739019046404,-500.0,0.00010256,2]
[352254042,1739019046413,-500.0,0.00010256,2]
[352254044,1739019046423,-330.16297407,0.00010256,2]
[352254046,1739019046433,-500.0,0.00010256,2]
[352254048,1739019046442,-500.0,0.00010256,2]
[352254050,1739019046451,-502.11083024,0.00010256,2]
[352254052,1739019046461,-500.0,0.00010256,2]
[352254054,1739019046471,-500.0,0.00010256,2]
[352254056,1739019046480,-500.0,0.00010256,2]
[352254058,1739019046490,-500.0,0.00010256,2]
[352254060,1739019046500,-500.0,0.00010256,2]
[352254062,1739019046509,-500.0,0.00010256,2]
[352254064,1739019046519,-500.0,0.00010256,2]
[352254066,1739019046529,-500.0,0.00010256,2]
[352254068,1739019046542,-500.0,0.00010256,2]
[352254070,1739019046552,-500.0,0.00010256,2]
[352254072,1739019046561,-515.97,0.00010256,2]
[352254074,1739019046571,-500.0,0.00010256,2]
[352254076,1739019046580,-500.0,0.00010256,2]
[352254078,1739019046590,-500.0,0.00010256,2]
[352254080,1739019046599,-648.2,0.00010256,2]
[352254082,1739019046609,-500.0,0.00010256,2]
[352254084,1739019046618,-501.34707506,0.00010256,2]
[352254086,1739019046628,-500.0,0.00010256,2]
[352254088,1739019046638,-3008.63252,0.00010256,2]
[352254090,1739019046647,-500.0,0.00010256,2]
[352254092,1739019046656,-2728.309725,0.00010256,2]
[352254094,1739019046665,-500.0,0.00010256,2]
[352254096,1739019046675,-3964.16,0.00010256,2]
[352254098,1739019046684,-500.0,0.00010256,2]
[352254100,1739019046694,-501.56971783,0.00010256,2]
[352254102,1739019046703,-500.0,0.00010256,2]
[352254104,1739019046712,-500.0,0.00010256,2]
[352254106,1739019046721,-500.0,0.00010256,2]
[352254108,1739019046730,-500.0,0.00010256,2]
[352254110,1739019046740,-500.0,0.00010256,2]
[352254112,1739019046749,-1789.1,0.00010256,2]
[352254114,1739019046758,-500.0,0.00010256,2]
[352254116,1739019046767,-500.0,0.00010256,2]
[352254125,1739019046844,-500.0,0.00010256,2]
[352254127,1739019046853,-500.0,0.00010256,2]
[352254128,1739019046862,-500.0,0.00010256,2]
[352254129,1739019046871,-2632.84,0.00010256,2]
[352254130,1739019046880,-500.0,0.00010256,2]
[352254131,1739019046890,-500.0,0.00010256,2]
[352254132,1739019046899,-1472.27,0.00010256,2]
[352254133,1739019046908,-500.0,0.00010256,2]
[352254134,1739019046917,-500.0,0.00010256,2]
[352254135,1739019046926,-500.0,0.00010256,2]
[352254136,1739019046936,-500.0,0.00010256,2]
[352254137,1739019046945,-1246.73,0.00010256,2]
[352254138,1739019046955,-274.41,0.00010256,2]
[352254139,1739019046964,-500.0,0.00010256,2]
[352254140,1739019046974,-732.86,0.00010256,2]
[352254141,1739019046983,-1635.35,0.00010256,2]
[352254142,1739019046993,-500.0,0.00010256,2]